[Event "HUN-chT Youth 2019"]
[Site "Budapest"]
[Date "2019.10.28"]
[Round "5.7"]
[White "Szabo, Marton Nandor"]
[Black "Megyeri, Martin"]
[Result "1/2-1/2"]
[ECO "E18"]
[WhiteElo "1803"]
[BlackElo "1611"]
[Annotator "NA"]
[PlyCount "28"]
[EventDate "2019.10.26"]
[EventType "team-tourn"]
[EventCountry "HUN"]
[SourceTitle "playchess.com"]
[Source "ChessBase"]
[SourceQuality "1"]
[TimeControl "5400+30"]

1. Nf3 {[%emt 0:00:00]} b6 {[%emt 0:00:00]} 2. c4 {[%emt 0:00:44]} Bb7 {[%emt 0:00:00]} 3. g3 {[%emt 0:00:09]} Nf6 {[%emt 0:00:06]} 4. Bg2 {[%emt 0:00:10]} e6 {[%emt 0:00:10]} 5. d4 {[%emt 0:00:14]} Be7 {[%emt 0:00:24]} 6. Nc3 {[%emt 0:00:35]} O-O {[%emt 0:00:40]} 7. O-O {[%emt 0:00:13]} d5 {[%emt 0:00:18]} 8. b3 {[%emt 0:02:07]} c5 {[%emt 0:02:45]} 9. Bb2 {[%emt 0:10:29]} Nbd7 {[%emt 0:02:17]} 10. e3 {[%emt 0:02:55]} a6 {[%emt 0:06:51]} 11. Ne5 {[%emt 0:03:12]} Qc7 {[%emt 0:03:55]} 12. Rc1 {[%emt 0:06:58]} dxc4 {[%emt 0:11:10]} 13. Nxd7 {[%emt 0:16:48]} Qxd7 {[%emt 0:02:28]} 14. bxc4 {[%emt 0:02:04]} Bxg2 {[%emt 0:01:20]} 1/2-1/2

[Event "HUN-chT Youth 2019"]
[Site "Budapest"]
[Date "2019.10.28"]
[Round "5.8"]
[White "Lehocz, Jozsef Jr."]
[Black "Foldes, Marton Gabor"]
[Result "1/2-1/2"]
[ECO "A01"]
[WhiteElo "1447"]
[BlackElo "1755"]
[Annotator "NA"]
[PlyCount "32"]
[EventDate "2019.10.26"]
[EventType "team-tourn"]
[EventCountry "HUN"]
[SourceTitle "playchess.com"]
[Source "ChessBase"]
[SourceQuality "1"]
[TimeControl "5400+30"]

1. b3 {[%emt 0:00:00]} e5 {[%emt 0:01:45]} 2. Bb2 {[%emt 0:00:00]} Nc6 {[%emt 0:00:57]} 3. e3 {[%emt 0:00:00]} d6 {[%emt 0:00:32]} 4. Bb5 {[%emt 0:00:00]} Bd7 {[%emt 0:01:40]} 5. Nf3 {[%emt 0:00:03]} Nge7 {[%emt 0:07:46]} 6. d4 {[%emt 0:00:54]} exd4 {[%emt 0:06:19]} 7. exd4 {[%emt 0:00:12]} d5 {[%emt 0:00:57]} 8. O-O {[%emt 0:01:15]} g6 {[%emt 0:02:15]} 9. Re1 {[%emt 0:01:04]} Bg7 {[%emt 0:02:31]} 10. Bxc6 {[%emt 0:00:23]} bxc6 {[%emt 0:03:15]} 11. Nbd2 {[%emt 0:00:25]} O-O {[%emt 0:01:22]} 12. Ne5 {[%emt 0:00:10]} f6 {[%emt 0:06:35]} 13. Nd3 {[%emt 0:00:23]} Re8 {[%emt 0:05:53]} 14. Nc5 {[%emt 0:05:31]} Nf5 {[%emt 0:05:04]} 15. Nf3 {[%emt 0:03:20]} Nd6 {[%emt 0:05:35]} 16. Nd2 {[%emt 0:03:04]} Bh6 {[%emt 0:06:35]} 1/2-1/2

[Event "HUN-chT Youth 2019"]
[Site "Budapest"]
[Date "2019.10.28"]
[Round "5.9"]
[White "Csernyik, Mark"]
[Black "Kellermann, Botond"]
[Result "1-0"]
[ECO "A04"]
[WhiteElo "1749"]
[BlackElo "1274"]
[Annotator "NA"]
[PlyCount "75"]
[EventDate "2019.10.26"]
[EventType "team-tourn"]
[EventCountry "HUN"]
[SourceTitle "playchess.com"]
[Source "ChessBase"]
[SourceQuality "1"]
[TimeControl "5400+30"]

1. Nf3 {[%emt 0:00:00]} c6 {[%emt 0:00:01]} 2. b3 {[%emt 0:00:00]} d5 {[%emt 0:00:18]} 3. Bb2 {[%emt 0:00:00]} Bf5 {[%emt 0:00:23]} 4. e3 {[%emt 0:00:45]} Nd7 {[%emt 0:00:39]} 5. Be2 {[%emt 0:01:01]} Ngf6 {[%emt 0:00:45]} 6. O-O {[%emt 0:04:01]} e6 {[%emt 0:02:16]} 7. d4 {[%emt 0:06:50]} Ne4 {[%emt 0:02:32]} 8. c4 {[%emt 0:02:01]} Rc8 {[%emt 0:03:25]} 9. Nbd2 {[%emt 0:02:49]} Bd6 {[%emt 0:03:25]} 10. cxd5 {[%emt 0:07:07]} cxd5 {[%emt 0:00:25]} 11. Nxe4 {[%emt 0:01:08]} Bxe4 {[%emt 0:00:15]} 12. Bd3 {[%emt 0:00:13]} O-O {[%emt 0:02:48]} 13. h3 {[%emt 0:01:54]} h6 {[%emt 0:02:47]} 14. Bxe4 {[%emt 0:00:52]} dxe4 {[%emt 0:00:17]} 15. Nd2 {[%emt 0:00:19]} f5 {[%emt 0:00:36]} 16. Nc4 {[%emt 0:00:17]} Nf6 {[%emt 0:01:49]} 17. Qd2 {[%emt 0:02:12]} b5 {[%emt 0:00:54]} 18. Nxd6 {[%emt 0:00:51]} Qxd6 {[%emt 0:00:12]} 19. Qa5 {[%emt 0:01:17]} a6 {[%emt 0:01:54]} 20. Ba3 {[%emt 0:00:25]} Qc6 {[%emt 0:00:49]} 21. Rac1 {[%emt 0:00:55]} Qb7 {[%emt 0:00:23]} 22. Bxf8 {[%emt 0:01:30]} Rxf8 {[%emt 0:00:10]} 23. Rc7 {[%emt 0:02:30]} Qa8 {[%emt 0:01:47]} 24. Qb6 {[%emt 0:01:40]} Nd5 {[%emt 0:00:47]} 25. Qxe6+ {[%emt 0:00:05]} Kh8 {[%emt 0:00:20]} 26. Rf7 {[%emt 0:03:20]} Rxf7 {[%emt 0:01:32]} 27. Qxf7 {[%emt 0:00:42]} Nf6 {[%emt 0:00:13]} 28. Rc1 {[%emt 0:00:28]} Kh7 {[%emt 0:01:46]} 29. Rc7 {[%emt 0:00:51]} Ne8 {[%emt 0:00:37]} 30. Qxf5+ {[%emt 0:00:12]} Kh8 {[%emt 0:00:30]} 31. Qf8+ {[%emt 0:00:04]} Kh7 {[%emt 0:00:26]} 32. Rxg7+ {[%emt 0:00:05]} Nxg7 {[%emt 0:00:16]} 33. Qxa8 {[%emt 0:00:07]} Kg6 {[%emt 0:00:26]} 34. Qxe4+ {[%emt 0:00:09]} Kf7 {[%emt 0:00:16]} 35. d5 {[%emt 0:00:09]} Ne8 {[%emt 0:00:15]} 36. Qe6+ {[%emt 0:00:10]} Kf8 {[%emt 0:00:34]} 37. d6 {[%emt 0:00:18]} a5 {[%emt 0:00:24]} 38. d7 {[%emt 0:00:08]} 1-0

[Event "HUN-chT Youth 2019"]
[Site "Budapest"]
[Date "2019.10.28"]
[Round "5.10"]
[White "Kiss, Eniko"]
[Black "Daroczi, Donat"]
[Result "0-1"]
[ECO "A13"]
[WhiteElo "1703"]
[BlackElo "1976"]
[Annotator "NA RC"]
[PlyCount "100"]
[EventDate "2019.10.26"]
[EventType "team-tourn"]
[EventCountry "HUN"]
[SourceTitle "playchess.com"]
[Source "ChessBase"]
[SourceQuality "1"]
[TimeControl "5400+30"]

1. c4 {[%emt 0:00:06]} e6 {[%emt 0:00:00]} 2. e4 {[%emt 0:00:10]} d5 {[%emt 0:00:00]} 3. exd5 {[%emt 0:00:20]} exd5 {[%emt 0:00:00]} 4. d4 {[%emt 0:00:06]} Nf6 {[%emt 0:00:00]} 5. Nc3 {[%emt 0:00:07]} Be7 {[%emt 0:00:00]} 6. Bd3 {[%emt 0:01:11]} O-O {[%emt 0:01:38]} 7. Nge2 {[%emt 0:00:43]} dxc4 {[%emt 0:04:15]} 8. Bxc4 {[%emt 0:00:05]} Bf5 {[%emt 0:00:17]} 9. O-O {[%emt 0:08:33]} Nbd7 {[%emt 0:02:20]} 10. Ng3 {[%emt 0:03:44]} Bg6 {[%emt 0:00:18]} 11. f4 {[%emt 0:00:11]} Nb6 {[%emt 0:08:04]} 12. Bb3 {[%emt 0:12:56]} h6 {[%emt 0:00:46]} 13. f5 {[%emt 0:01:00]} Bh7 {[%emt 0:00:01]} 14. d5 {[%emt 0:10:20]} Qd7 {[%emt 0:07:08]} 15. Qf3 {[%emt 0:03:20]} Rad8 {[%emt 0:05:01]} 16. Be3 {[%emt 0:17:16]} c6 {[%emt 0:19:20]} 17. dxc6 {[%emt 0:10:43]} Qxc6 {[%emt 0:00:11]} 18. Qxc6 {[%emt 0:03:02]} bxc6 {[%emt 0:00:01]} 19. a4 {[%emt 0:02:17]} Ng4 {[%emt 0:01:25]} 20. Bxb6 {[%emt 0:06:54]} axb6 {[%emt 0:00:19]} 21. Nce4 {[%emt 0:00:56]} Rd4 {[%emt 0:05:26]} 22. a5 {[%emt 0:02:56]} Rb4 {[%emt 0:09:30]} 23. Bd1 {[%emt 0:05:24]} Ne3 {[%emt 0:01:32]} 24. Re1 {[%emt 0:01:48]} Nxd1 {[%emt 0:10:13]} 25. Rexd1 {[%emt 0:00:08]} bxa5 {[%emt 0:02:18]} 26. Rxa5 {[%emt 0:01:03]} Rxb2 {[%emt 0:05:09]} 27. Re5 {[%emt 0:03:49]} Bd8 {[%emt 0:01:29]} 28. Rc1 {[%emt 0:02:22]} Bb6+ {[%emt 0:01:49]} 29. Kf1 {[%emt 0:02:05]} Rd8 {[%emt 0:00:01]} 30. Ke1 {[%emt 0:00:49]} Ra8 {[%emt 0:06:52]} 31. Nd6 {[%emt 0:00:28]} Kf8 {[%emt 0:01:29]} 32. Nc4 {[%emt 0:00:31]} Bc7 {[%emt 0:00:53]} 33. Re3 {[%emt 0:00:34]} Rxg2 {[%emt 0:00:20]} 34. Re2 {[%emt 0:00:26]} Bxg3+ {[%emt 0:00:27]} 35. hxg3 {[%emt 0:00:03]} Rg1+ {[%emt 0:00:11]} 36. Kd2 {[%emt 0:00:12]} Ra2+ {[%emt 0:00:23]} 37. Rc2 {[%emt 0:00:06]} Rxc2+ {[%emt 0:00:07]} 38. Kxc2 {[%emt 0:00:02]} Bxf5+ {[%emt 0:00:00]} 39. Kb2 {[%emt 0:00:41]} Rxg3 {[%emt 0:00:02]} 40. Ne5 {[%emt 0:01:24]} c5 {[%emt 0:02:03]} 41. Nc6 {[%emt 0:01:00]} h5 {[%emt 0:00:25]} 42. Re5 {[%emt 0:00:32]} Bg4 {[%emt 0:00:42]} 43. Rxc5 {[%emt 0:00:15]} g6 {[%emt 0:00:11]} 44. Ne5 {[%emt 0:00:27]} Kg7 {[%emt 0:00:45]} 45. Rc7 {[%emt 0:00:34]} Be6 {[%emt 0:00:19]} 46. Nc6 {[%emt 0:00:24]} h4 {[%emt 0:00:16]} 47. Nd8 {[%emt 0:00:02]} Kf6 {[%emt 0:00:08]} 48. Rc2 {[%emt 0:00:31]} h3 {[%emt 0:00:07]} 49. Rf2+ {[%emt 0:00:14]} Kg7 {[%emt 0:00:12]} 50. Nxe6+ {[%emt 0:01:10]} fxe6 {[%emt 0:00:02]} 0-1

[Event "HUN-chT Youth 2019"]
[Site "Budapest"]
[Date "2019.10.28"]
[Round "5.11"]
[White "Kiss, Rebeka"]
[Black "Ivan, Reka Gyongyver"]
[Result "1/2-1/2"]
[ECO "B13"]
[WhiteElo "1743"]
[BlackElo "1686"]
[Annotator "NA RC"]
[PlyCount "84"]
[EventDate "2019.10.26"]
[EventType "team-tourn"]
[EventCountry "HUN"]
[SourceTitle "playchess.com"]
[Source "ChessBase"]
[SourceQuality "1"]
[TimeControl "5400+30"]

1. e4 {[%emt 0:00:00]} c6 {[%emt 0:00:00]} 2. d4 {[%emt 0:00:00]} d5 {[%emt 0:00:00]} 3. exd5 {[%emt 0:02:07]} cxd5 {[%emt 0:00:04]} 4. Bd3 {[%emt 0:01:24]} Nc6 {[%emt 0:00:16]} 5. c3 {[%emt 0:01:06]} Nf6 {[%emt 0:00:20]} 6. Bf4 {[%emt 0:02:21]} Bg4 {[%emt 0:00:23]} 7. Qb3 {[%emt 0:04:51]} Qc8 {[%emt 0:03:07]} 8. Nd2 {[%emt 0:10:06]} e6 {[%emt 0:00:26]} 9. Ngf3 {[%emt 0:00:34]} Be7 {[%emt 0:00:30]} 10. O-O {[%emt 0:01:22]} O-O {[%emt 0:00:59]} 11. Qc2 {[%emt 0:02:40]} Bh5 {[%emt 0:00:41]} 12. Ne5 {[%emt 0:04:01]} a6 {[%emt 0:16:06]} 13. Rfe1 {[%emt 0:07:18]} b5 {[%emt 0:02:28]} 14. Nxc6 {[%emt 0:00:45]} Qxc6 {[%emt 0:00:11]} 15. Bg5 {[%emt 0:02:37]} Bg6 {[%emt 0:00:27]} 16. Bxg6 {[%emt 0:00:17]} hxg6 {[%emt 0:00:16]} 17. Qd3 {[%emt 0:02:28]} a5 {[%emt 0:02:14]} 18. Nf3 {[%emt 0:02:06]} Rfc8 {[%emt 0:07:10]} 19. Ne5 {[%emt 0:01:11]} Qb7 {[%emt 0:00:21]} 20. b3 {[%emt 0:18:36]} Rab8 21. Bf4 Ne4 {[%emt 0:22:52]} 22. c4 {[%emt 0:07:12]} Bb4 {[%emt 0:03:19]} 23. Re2 {[%emt 0:06:19]} g5 {[%emt 0:15:51]} 24. Bg3 {[%emt 0:08:03]} Nxg3 25. hxg3 bxc4 {[%emt 0:08:31]} 26. bxc4 {[%emt 0:00:17]} dxc4 {[%emt 0:01:39]} 27. Nxc4 {[%emt 0:00:22]} Qd5 {[%emt 0:01:27]} 28. Ne3 {[%emt 0:01:11]} Qb5 {[%emt 0:03:48]} 29. Qxb5 {[%emt 0:00:37]} Rxb5 {[%emt 0:00:05]} 30. Rd1 {[%emt 0:01:23]} Rd8 {[%emt 0:00:55]} 31. Rc2 {[%emt 0:00:17]} Rb7 {[%emt 0:00:52]} 32. f4 {[%emt 0:01:15]} Rbd7 {[%emt 0:02:12]} 33. Rc4 {[%emt 0:00:42]} gxf4 {[%emt 0:01:21]} 34. gxf4 {[%emt 0:00:08]} Bd6 {[%emt 0:01:35]} 35. g3 {[%emt 0:00:11]} Bc7 {[%emt 0:00:21]} 36. Kg2 {[%emt 0:00:45]} Bb6 {[%emt 0:00:22]} 37. Nc2 {[%emt 0:00:07]} f6 {[%emt 0:00:58]} 38. Kf3 {[%emt 0:00:18]} e5 {[%emt 0:04:34]} 39. fxe5 {[%emt 0:00:14]} fxe5 {[%emt 0:00:15]} 40. Ke4 {[%emt 0:00:24]} exd4 {[%emt 0:00:32]} 41. Nxd4 {[%emt 0:00:51]} Kf7 {[%emt 0:01:28]} 42. Rf1+ {[%emt 0:00:08]} Kg8 {[%emt 0:00:58]} 1/2-1/2

[Event "HUN-chT Youth 2019"]
[Site "Budapest"]
[Date "2019.10.28"]
[Round "5.12"]
[White "Kiraly, Lilla Virag"]
[Black "Farkas, Virag"]
[Result "1-0"]
[ECO "B23"]
[WhiteElo "1450"]
[BlackElo "1506"]
[Annotator "NA RC"]
[PlyCount "45"]
[EventDate "2019.10.26"]
[EventType "team-tourn"]
[EventCountry "HUN"]
[SourceTitle "playchess.com"]
[Source "ChessBase"]
[SourceQuality "1"]
[TimeControl "5400+30"]

1. e4 {[%emt 0:00:00]} c5 {[%emt 0:00:00]} 2. Nc3 {[%emt 0:00:00]} e6 {[%emt 0:00:13]} 3. g3 {[%emt 0:00:10]} d5 {[%emt 0:00:43]} 4. d3 {[%emt 0:01:44]} Nf6 {[%emt 0:01:31]} 5. Bg2 {[%emt 0:00:22]} h6 {[%emt 0:08:20]} 6. f4 {[%emt 0:00:59]} Nc6 {[%emt 0:03:05]} 7. Qe2 {[%emt 0:04:43]} Be7 {[%emt 0:04:31]} 8. Nf3 {[%emt 0:02:36]} b6 {[%emt 0:03:24]} 9. O-O {[%emt 0:03:23]} Bb7 {[%emt 0:06:24]} 10. h3 {[%emt 0:03:27]} O-O {[%emt 0:08:19]} 11. g4 {[%emt 0:08:17]} h5 {[%emt 0:06:22]} 12. g5 {[%emt 0:03:17]} Nd7 {[%emt 0:01:29]} 13. exd5 {[%emt 0:00:45]} exd5 {[%emt 0:02:02]} 14. Nxd5 {[%emt 0:01:40]} Re8 {[%emt 0:06:27]} 15. Nxe7+ {[%emt 0:02:31]} Nxe7 16. Bd2 {[%emt 0:01:21]} Nf5 {[%emt 0:05:13]} 17. Qf2 {[%emt 0:02:44]} f6 {[%emt 0:05:46]} 18. Rfe1 {[%emt 0:11:15]} Rb8 {[%emt 0:04:50]} 19. Bc3 {[%emt 0:08:27]} Bxf3 {[%emt 0:06:37]} 20. Qxf3 {[%emt 0:03:03]} Qc7 {[%emt 0:10:51]} 21. Qd5+ {[%emt 0:00:51]} Kh8 {[%emt 0:02:33]} 22. Qxf5 {[%emt 0:00:48]} fxg5 {[%emt 0:02:26]} 23. Qxg5 {[%emt 0:00:38]} 1-0

[Event "HUN-chT Youth 2019"]
[Site "Budapest"]
[Date "2019.10.28"]
[Round "5.13"]
[White "Konyves, Almos"]
[Black "Szarka, Tibor"]
[Result "1-0"]
[ECO "A20"]
[WhiteElo "2006"]
[BlackElo "1469"]
[Annotator "NA RC"]
[PlyCount "45"]
[EventDate "2019.10.26"]
[EventType "team-tourn"]
[EventCountry "HUN"]
[SourceTitle "playchess.com"]
[Source "ChessBase"]
[SourceQuality "1"]
[TimeControl "5400+30"]

1. c4 {[%emt 0:00:09]} e5 {[%emt 0:00:00]} 2. g3 {[%emt 0:00:12]} Nf6 {[%emt 0:00:08]} 3. Bg2 {[%emt 0:00:06]} d5 {[%emt 0:00:20]} 4. cxd5 {[%emt 0:00:06]} Nxd5 {[%emt 0:00:06]} 5. Nc3 {[%emt 0:00:06]} Nb6 {[%emt 0:00:05]} 6. Nf3 {[%emt 0:00:06]} Nc6 {[%emt 0:00:14]} 7. d3 {[%emt 0:00:06]} Be7 {[%emt 0:00:24]} 8. O-O {[%emt 0:00:09]} O-O {[%emt 0:00:19]} 9. a3 {[%emt 0:00:09]} Be6 {[%emt 0:00:19]} 10. b4 {[%emt 0:00:22]} a6 {[%emt 0:00:47]} 11. Bb2 {[%emt 0:00:37]} f6 {[%emt 0:00:29]} 12. Rb1 {[%emt 0:02:11]} Bf5 {[%emt 0:13:51]} 13. Nd2 {[%emt 0:02:12]} Qd7 {[%emt 0:01:17]} 14. Nce4 {[%emt 0:01:03]} Bh3 {[%emt 0:02:29]} 15. Qb3+ {[%emt 0:06:09]} Kh8 {[%emt 0:00:41]} 16. Bxh3 {[%emt 0:03:52]} Qxh3 {[%emt 0:00:38]} 17. Nc5 {[%emt 0:00:31]} f5 {[%emt 0:04:51]} 18. Nf3 {[%emt 0:14:02]} Bd6 {[%emt 0:20:07]} 19. Nxb7 {[%emt 0:08:59]} Rf6 {[%emt 0:08:37]} 20. Rfc1 {[%emt 0:03:00]} Nd4 {[%emt 0:07:34]} 21. Bxd4 {[%emt 0:00:11]} exd4 {[%emt 0:00:30]} 22. Nxd6 {[%emt 0:01:03]} Rxd6 {[%emt 0:01:49]} 23. Ng5 {[%emt 0:00:13]} 1-0

[Event "HUN-chT Youth 2019"]
[Site "Budapest"]
[Date "2019.10.28"]
[Round "5.14"]
[White "Vilics, Hanna"]
[Black "Bodrogi, Bendeguz"]
[Result "0-1"]
[ECO "A46"]
[WhiteElo "1253"]
[BlackElo "1903"]
[Annotator "NA RC"]
[PlyCount "82"]
[EventDate "2019.10.26"]
[EventType "team-tourn"]
[EventCountry "HUN"]
[SourceTitle "playchess.com"]
[Source "ChessBase"]
[SourceQuality "1"]
[TimeControl "5400+30"]

1. d4 {[%emt 0:00:00]} Nf6 {[%emt 0:00:00]} 2. Nf3 {[%emt 0:00:00]} c5 {[%emt 0:00:46]} 3. g3 {[%emt 0:00:20]} cxd4 {[%emt 0:00:39]} 4. Nxd4 {[%emt 0:00:07]} Nc6 {[%emt 0:00:32]} 5. Nb3 {[%emt 0:00:15]} g6 {[%emt 0:00:41]} 6. Bg2 {[%emt 0:00:19]} Bg7 {[%emt 0:00:39]} 7. O-O {[%emt 0:00:51]} O-O {[%emt 0:00:50]} 8. Nc3 {[%emt 0:02:06]} d6 {[%emt 0:01:05]} 9. e4 {[%emt 0:01:54]} Bd7 {[%emt 0:05:14]} 10. Be3 {[%emt 0:02:02]} Ne5 {[%emt 0:01:49]} 11. Bd4 {[%emt 0:10:13]} Nc6 {[%emt 0:01:56]} 12. f4 {[%emt 0:04:46]} Nxd4 {[%emt 0:00:32]} 13. Nxd4 {[%emt 0:00:45]} Ng4 {[%emt 0:00:54]} 14. Qd3 {[%emt 0:03:21]} Qb6 {[%emt 0:00:14]} 15. Rfd1 {[%emt 0:01:55]} e5 {[%emt 0:00:50]} 16. Nd5 {[%emt 0:03:33]} Qxd4+ {[%emt 0:00:34]} 17. Qxd4 {[%emt 0:00:13]} exd4 {[%emt 0:00:12]} 18. h3 {[%emt 0:00:37]} Ne3 {[%emt 0:01:53]} 19. Nxe3 {[%emt 0:00:52]} dxe3 {[%emt 0:00:08]} 20. Rxd6 {[%emt 0:00:16]} Bc6 {[%emt 0:01:07]} 21. e5 {[%emt 0:01:19]} Bxg2 {[%emt 0:00:50]} 22. Kxg2 {[%emt 0:00:08]} Rfd8 {[%emt 0:00:32]} 23. Rad1 {[%emt 0:00:42]} Rxd6 {[%emt 0:00:32]} 24. Rxd6 {[%emt 0:00:31]} Rc8 {[%emt 0:00:39]} 25. c3 {[%emt 0:00:20]} Bf8 {[%emt 0:02:06]} 26. Rd7 {[%emt 0:00:12]} Bc5 {[%emt 0:00:11]} 27. Kf3 {[%emt 0:00:50]} Bb6 {[%emt 0:00:20]} 28. g4 {[%emt 0:00:39]} Rd8 {[%emt 0:00:57]} 29. Rxd8+ {[%emt 0:00:27]} Bxd8 {[%emt 0:00:10]} 30. Kxe3 {[%emt 0:00:11]} Kf8 {[%emt 0:00:19]} 31. Ke4 {[%emt 0:01:06]} Bh4 {[%emt 0:02:11]} 32. f5 {[%emt 0:01:18]} Ke7 {[%emt 0:00:12]} 33. Kd5 {[%emt 0:00:44]} Bg5 {[%emt 0:03:55]} 34. c4 {[%emt 0:00:31]} a5 {[%emt 0:01:31]} 35. b3 {[%emt 0:04:20]} Bd2 {[%emt 0:02:00]} 36. Kc5 {[%emt 0:10:36]} Bc3 {[%emt 0:16:34]} 37. Kd5 {[%emt 0:03:05]} Bb4 {[%emt 0:01:13]} 38. c5 {[%emt 0:03:32]} Kd7 {[%emt 0:01:06]} 39. h4 {[%emt 0:04:27]} gxf5 {[%emt 0:01:46]} 40. g5 {[%emt 0:01:11]} Be1 {[%emt 0:01:00]} 41. h5 {[%emt 0:00:30]} Bd2 {[%emt 0:00:15]} 0-1

[Event "HUN-chT Youth 2019"]
[Site "Budapest"]
[Date "2019.10.28"]
[Round "5.15"]
[White "Virag, Balint"]
[Black "Koszta, Benedek"]
[Result "1/2-1/2"]
[ECO "B92"]
[WhiteElo "2100"]
[BlackElo "2043"]
[Annotator "NA"]
[PlyCount "34"]
[EventDate "2019.10.26"]
[EventType "team-tourn"]
[EventCountry "HUN"]
[SourceTitle "playchess.com"]
[Source "ChessBase"]
[SourceQuality "1"]
[TimeControl "5400+30"]

1. e4 {[%emt 0:00:00]} c5 {[%emt 0:00:00]} 2. Nf3 {[%emt 0:00:00]} d6 {[%emt 0:00:00]} 3. d4 {[%emt 0:00:00]} cxd4 {[%emt 0:00:00]} 4. Nxd4 {[%emt 0:00:01]} Nf6 {[%emt 0:00:02]} 5. Nc3 {[%emt 0:00:10]} a6 {[%emt 0:00:06]} 6. Be2 {[%emt 0:00:26]} e5 {[%emt 0:00:32]} 7. Nb3 {[%emt 0:01:11]} Be7 {[%emt 0:00:46]} 8. Be3 {[%emt 0:02:18]} Be6 {[%emt 0:00:17]} 9. O-O {[%emt 0:03:25]} Nbd7 {[%emt 0:01:13]} 10. f4 {[%emt 0:03:46]} exf4 {[%emt 0:03:18]} 11. Bxf4 {[%emt 0:01:30]} Ne5 {[%emt 0:00:48]} 12. Kh1 {[%emt 0:02:14]} O-O {[%emt 0:02:12]} 13. Nd4 {[%emt 0:02:19]} Rc8 {[%emt 0:04:07]} 14. Nxe6 {[%emt 0:02:29]} fxe6 {[%emt 0:02:17]} 15. Bxe5 {[%emt 0:00:44]} dxe5 {[%emt 0:00:07]} 16. Qxd8 {[%emt 0:01:36]} Rfxd8 {[%emt 0:00:13]} 17. Bd3 {[%emt 0:06:58]} Bc5 {[%emt 0:06:38]} 1/2-1/2

[Event "HUN-chT Youth 2019"]
[Site "Budapest"]
[Date "2019.10.28"]
[Round "5.15"]
[White "Onodi, Miklos"]
[Black "Porpaczy, Marton"]
[Result "1-0"]
[ECO "D00"]
[WhiteElo "1548"]
[BlackElo "1066"]
[Annotator "NA"]
[PlyCount "69"]
[EventDate "2019.10.26"]
[EventType "team-tourn"]
[EventCountry "HUN"]
[SourceTitle "playchess.com"]
[Source "ChessBase"]
[SourceQuality "1"]
[TimeControl "5400+30"]

1. d4 {[%emt 0:00:00]} d5 {[%emt 0:00:00]} 2. Bf4 {[%emt 0:00:00]} c5 {[%emt 0:00:00]} 3. e3 {[%emt 0:00:00]} Nf6 {[%emt 0:00:24]} 4. c3 {[%emt 0:00:05]} Bf5 {[%emt 0:00:12]} 5. Nf3 {[%emt 0:01:00]} a6 {[%emt 0:00:15]} 6. a4 {[%emt 0:01:40]} e6 {[%emt 0:00:44]} 7. Qb3 {[%emt 0:01:41]} Qe7 {[%emt 0:04:39]} 8. dxc5 {[%emt 0:02:34]} Nc6 {[%emt 0:08:11]} 9. Bd6 {[%emt 0:04:24]} Qd7 {[%emt 0:00:23]} 10. Bxf8 {[%emt 0:00:13]} Rxf8 {[%emt 0:00:24]} 11. Nd4 {[%emt 0:01:03]} Nxd4 {[%emt 0:01:53]} 12. cxd4 {[%emt 0:01:13]} Ke7 {[%emt 0:02:35]} 13. Qb4 {[%emt 0:01:46]} Qc6 {[%emt 0:01:21]} 14. Nc3 {[%emt 0:01:59]} Rfd8 {[%emt 0:03:37]} 15. Be2 {[%emt 0:01:52]} Kf8 {[%emt 0:00:40]} 16. O-O {[%emt 0:00:12]} Kg8 {[%emt 0:00:19]} 17. Qb3 {[%emt 0:03:06]} Qc7 {[%emt 0:00:26]} 18. Qd1 {[%emt 0:01:36]} Rac8 {[%emt 0:01:33]} 19. Bd3 {[%emt 0:00:33]} Ng4 {[%emt 0:00:58]} 20. g3 {[%emt 0:00:52]} Nf6 {[%emt 0:01:05]} 21. Bxf5 {[%emt 0:00:34]} exf5 {[%emt 0:00:06]} 22. b4 {[%emt 0:02:29]} Ne4 {[%emt 0:02:26]} 23. Qc2 {[%emt 0:03:31]} Qd7 {[%emt 0:01:08]} 24. Rfb1 {[%emt 0:03:45]} Nxc3 {[%emt 0:00:58]} 25. Qxc3 {[%emt 0:00:08]} Re8 {[%emt 0:00:36]} 26. b5 {[%emt 0:02:13]} axb5 {[%emt 0:00:59]} 27. axb5 {[%emt 0:01:39]} Re6 {[%emt 0:00:31]} 28. Ra7 {[%emt 0:01:14]} Qd8 {[%emt 0:02:12]} 29. Rxb7 {[%emt 0:01:21]} Rh6 {[%emt 0:00:49]} 30. c6 {[%emt 0:01:29]} f6 {[%emt 0:00:51]} 31. Qc5 {[%emt 0:00:41]} Qe8 {[%emt 0:01:17]} 32. Qxd5+ {[%emt 0:00:12]} Kh8 {[%emt 0:00:13]} 33. Qd7 {[%emt 0:00:48]} Qxd7 {[%emt 0:00:41]} 34. cxd7 {[%emt 0:00:12]} Rd8 {[%emt 0:00:11]} 35. Rc1 {[%emt 0:00:18]} 1-0

[Event "HUN-chT Youth 2019"]
[Site "Budapest"]
[Date "2019.10.28"]
[Round "5.16"]
[White "Megyaszai, Balazs"]
[Black "Kovacsy, Barnabas"]
[Result "1/2-1/2"]
[ECO "B13"]
[WhiteElo "1894"]
[BlackElo "2093"]
[Annotator "NA RC"]
[PlyCount "79"]
[EventDate "2019.10.26"]
[EventType "team-tourn"]
[EventCountry "HUN"]
[SourceTitle "playchess.com"]
[Source "ChessBase"]
[SourceQuality "1"]
[TimeControl "5400+30"]

1. e4 {[%emt 0:00:00]} c6 {[%emt 0:00:00]} 2. d4 {[%emt 0:00:27]} d5 {[%emt 0:00:00]} 3. exd5 {[%emt 0:00:49]} cxd5 {[%emt 0:00:00]} 4. Bd3 {[%emt 0:01:03]} Nc6 {[%emt 0:00:00]} 5. c3 {[%emt 0:00:49]} Qc7 {[%emt 0:00:24]} 6. h3 {[%emt 0:01:25]} Nf6 {[%emt 0:02:15]} 7. Ne2 {[%emt 0:02:20]} g6 8. O-O {[%emt 0:01:51]} Bf5 {[%emt 0:04:35]} 9. Re1 {[%emt 0:09:01]} e6 {[%emt 0:06:11]} 10. Ng3 {[%emt 0:03:05]} O-O-O {[%emt 0:03:16]} 11. a4 {[%emt 0:05:19]} h6 {[%emt 0:09:38]} 12. Be3 {[%emt 0:05:00]} Bd6 {[%emt 0:01:28]} 13. Nf1 {[%emt 0:06:48]} g5 {[%emt 0:12:43]} 14. b4 {[%emt 0:06:15]} g4 {[%emt 0:03:42]} 15. hxg4 {[%emt 0:03:59]} Bxg4 {[%emt 0:02:43]} 16. Be2 {[%emt 0:04:51]} Rdg8 {[%emt 0:02:43]} 17. Na3 {[%emt 0:04:13]} Qe7 {[%emt 0:05:56]} 18. a5 {[%emt 0:07:00]} Bh3 {[%emt 0:02:39]} 19. Bf3 Ne4 {[%emt 0:00:53]} 20. Nb5 {[%emt 0:07:42]} Bb8 {[%emt 0:04:29]} 21. c4 {[%emt 0:06:13]} Ng5 {[%emt 0:01:08]} 22. g3 {[%emt 0:04:24]} Nxf3+ {[%emt 0:04:20]} 23. Qxf3 {[%emt 0:00:15]} dxc4 {[%emt 0:03:49]} 24. a6 {[%emt 0:02:22]} Bg4 {[%emt 0:04:52]} 25. Qg2 {[%emt 0:02:40]} Qd7 {[%emt 0:02:35]} 26. Nc3 {[%emt 0:03:24]} h5 {[%emt 0:03:40]} 27. Ne4 {[%emt 0:02:44]} Qd5 {[%emt 0:05:10]} 28. b5 {[%emt 0:01:43]} Nb4 {[%emt 0:03:47]} 29. Rec1 {[%emt 0:01:03]} Nd3 {[%emt 0:01:30]} 30. Rc3 {[%emt 0:00:47]} h4 {[%emt 0:01:16]} 31. Nf6 {[%emt 0:01:37]} Qxg2+ {[%emt 0:00:52]} 32. Kxg2 {[%emt 0:00:02]} hxg3 {[%emt 0:04:36]} 33. Rxc4+ {[%emt 0:01:52]} Kd8 {[%emt 0:00:22]} 34. Nxg3 {[%emt 0:01:33]} Bh3+ {[%emt 0:00:44]} 35. Kf3 {[%emt 0:00:38]} Rg6 {[%emt 0:00:58]} 36. Nfe4 {[%emt 0:00:46]} Bg4+ {[%emt 0:00:24]} 37. Kg2 {[%emt 0:00:12]} Bh3+ {[%emt 0:01:04]} 38. Kf3 {[%emt 0:00:59]} Bg4+ {[%emt 0:00:04]} 39. Kg2 {[%emt 0:00:06]} Bh3+ {[%emt 0:00:04]} 40. Kf3 {[%emt 0:01:52]} 1/2-1/2